bitfinex/quotes_SOLUSD_20250721
["timestamp","ask_amount","ask_price","bid_price","bid_amount"]
[1753096732630,6.60897222,191.36,191.35,148.0]
[1753096733943,11.83472472,191.36,191.35,148.0]
[1753096734541,11.16472472,191.36,191.35,148.0]
[1753096735337,5.93897222,191.36,191.35,148.0]
[1753096735744,11.16472472,191.36,191.35,148.0]
[1753096736826,0.06,191.36,191.35,54.42468397]
[1753096740656,0.06,191.36,191.35,17.44468397]
[1753096740865,0.06,191.36,191.35,54.42468397]
[1753096741561,0.06,191.36,191.35,244.83968179]
[1753096742432,0.06,191.4,191.39,31.31]
[1753096742737,0.06,191.4,191.39,238.89365619]
[1753096742947,0.06,191.4,191.39,244.11858957]
[1753096743144,0.06,191.4,191.39,238.89961735]
[1753096743653,0.06,191.4,191.39,244.77858957]
[1753096744357,0.06,191.4,191.39,238.89961735]
[1753096744658,0.06,191.4,191.39,244.77858957]
[1753096744856,0.06,191.4,191.39,202.57365619]
[1753096745040,0.06,191.4,191.39,233.67468397]
[1753096746354,0.06,191.4,191.39,196.69468397]
[1753096746656,0.06,191.4,191.39,233.67468397]
[1753096747742,0.06,191.4,191.39,238.89961735]
[1753096748444,0.06,191.4,191.39,233.67468397]
[1753096748857,0.06,191.4,191.39,238.89961735]
[1753096749358,0.06,191.4,191.39,233.67468397]
[1753096749661,0.06,191.4,191.39,238.89961735]
[1753096750273,0.06,191.4,191.39,244.77858957]
[1753096752474,0.06,191.42,191.41,195.97468397]
[1753096752651,0.06,191.42,191.41,238.81365619]
[1753096752844,0.06,191.42,191.41,239.47365619]
[1753096753542,0.06,191.42,191.41,244.69804363]
[1753096755166,0.06,191.42,191.41,238.81907141]
[1753096755368,0.06,191.42,191.41,244.69804363]
[1753096757558,0.06,191.43,191.42,201.13879848]
[1753096757750,0.06,191.43,191.42,238.73879848]
[1753096758080,0.06,191.43,191.42,244.6177707]
[1753096758245,0.06,191.43,191.42,207.6777707]
[1753096758445,0.06,191.43,191.42,244.6177707]
[1753096759278,0.06,191.43,191.42,201.79879848]
[1753096759454,0.06,191.43,191.42,238.73879848]
[1753096759653,0.06,191.43,191.42,244.6177707]
[1753096764661,0.06,191.43,191.42,201.79879848]
[1753096764865,0.06,191.43,191.42,249.8137707]
[1753096768668,0.06,191.43,191.42,212.8937707]
[1753096768869,0.06,191.43,191.42,249.8137707]
[1753096769580,0.06,191.43,191.42,243.93479848]
[1753096769886,0.06,191.48,191.47,48.09468397]
[1753096770064,0.06,191.48,191.47,238.53365619]
[1753096770262,0.06,191.48,191.47,238.53743427]
[1753096770481,0.06,191.48,191.47,244.41640649]
[1753096774498,0.06,191.48,191.47,200.95743427]
[1753096774664,0.06,191.48,191.47,237.87743427]
[1753096775376,0.06,191.48,191.47,238.57743427]
[1753096775872,0.06,191.48,191.47,244.45640649]
[1753096776188,0.06,191.51,191.49,195.61468397]
[1753096776491,0.06,191.51,191.49,238.39365619]
[1753096776893,0.06,191.51,191.49,239.09365619]
[1753096777992,0.06,191.51,191.49,244.315861]
[1753096778969,0.06,191.51,191.49,238.43688878]
[1753096779166,0.06,191.51,191.49,244.315861]
[1753096779388,0.06,191.51,191.49,243.615861]
[1753096779566,0.06,191.51,191.49,244.315861]
[1753096779772,0.06,191.51,191.49,207.415861]
[1753096780087,0.06,191.51,191.49,244.315861]
[1753096781193,0.06,191.51,191.5,195.55468397]
[1753096781373,0.06,191.51,191.5,239.03365619]
[1753096784293,0.06,191.51,191.5,244.2555883]
[1753096789287,0.06,191.53,191.5,244.2555883]
[1753096789288,0.06,191.53,191.52,48.09468397]
[1753096789600,0.06,191.54,191.52,91.37579487]
[1753096789781,0.06,191.54,191.53,97.60396468]
[1753096790209,0.06,191.54,191.53,60.72396468]
[1753096790400,0.06,191.54,191.53,91.55365619]
[1753096790721,0.06,191.54,191.53,96.77477037]
[1753096792985,0.06,191.54,191.53,98.02008147]
[1753096793487,0.06,191.54,191.53,98.02008087]
[1753096793983,0.06,191.54,191.53,96.77477037]
[1753096794183,0.06,191.6,191.57,48.09468397]
[1753096794400,0.06,191.6,191.58,90.85365619]
[1753096794702,0.06,191.6,191.58,92.79863709]
[1753096795092,0.06,191.6,191.58,50.03966487]
[1753096795299,0.06,191.6,191.58,92.77863709]
[1753096796203,0.06,191.6,191.58,97.99838862]
[1753096796506,0.78,191.59,191.58,196.51966487]
[1753096796715,6.65897222,191.59,191.58,179.7349809]
[1753096796915,6.65897222,191.59,191.58,216.5949809]
[1753096797690,0.78,191.59,191.58,216.5949809]
[1753096798113,0.78,191.59,191.58,219.23291994]
[1753096798515,0.06,191.59,191.58,236.01760391]
[1753096798812,0.78,191.59,191.58,236.01760391]
[1753096799035,0.78,191.59,191.58,182.37291994]
[1753096799196,0.78,191.59,191.58,219.23291994]
[1753096799197,6.65897222,191.59,191.58,219.23291994]
[1753096799392,0.78,191.59,191.58,219.23291994]
[1753096799597,0.06,191.59,191.58,219.23291994]
[1753096800215,0.78,191.59,191.58,219.23291994]
[1753096800602,0.78,191.59,191.58,236.01760391]
[1753096800807,0.06,191.59,191.58,236.01760391]
[1753096801203,0.06,191.59,191.58,241.23735544]
[1753096801799,0.06,191.59,191.58,236.01760391]
[1753096801800,0.78,191.59,191.58,236.01760391]
[1753096802410,0.78,191.59,191.58,219.23291994]
[1753096802995,6.65897222,191.59,191.58,219.23291994]
[1753096803394,0.06,191.59,191.58,236.01760391]
[1753096803606,0.06,191.62,191.61,195.09468397]
[1753096803807,0.06,191.65,191.64,74.09468397]
[1753096804018,0.06,191.65,191.64,110.95468397]
[1753096804216,0.06,191.65,191.64,117.55365619]
[1753096804407,0.06,191.65,191.64,84.95468397]
[1753096804599,0.06,191.65,191.64,53.31280127]
[1753096804799,0.06,191.65,191.64,90.17280127]
[1753096805220,6.65897222,191.65,191.64,16.78468397]
[1753096805400,6.65897222,191.65,191.64,53.64468397]
[1753096805600,0.78,191.65,191.64,36.86]
[1753096805808,6.65897222,191.65,191.64,36.86]
[1753096806336,0.78,191.65,191.64,36.86]
[1753096806509,6.65897222,191.65,191.64,36.86]
[1753096807922,0.78,191.65,191.64,36.86]
[1753096808099,6.65897222,191.65,191.64,36.86]
[1753096808715,5.93897222,191.65,191.64,36.86]
[1753096809222,0.06,191.65,191.64,36.86]
[1753096809426,5.93897222,191.65,191.64,36.86]
[1753096809915,6.65897222,191.65,191.64,36.86]
[1753096810118,0.78,191.65,191.64,36.86]
[1753096810425,6.65897222,191.65,191.64,36.86]
[1753096810924,6.65897222,191.65,191.64,183.86]
[1753096811811,0.78,191.65,191.64,183.86]
[1753096812016,6.65897222,191.65,191.64,183.86]
[1753096812325,5.93897222,191.65,191.64,183.86]
[1753096815021,6.65897222,191.65,191.64,183.86]
[1753096816432,5.93897222,191.65,191.64,183.86]
[1753096817230,6.65897222,191.65,191.64,183.86]
[1753096819146,6.65897222,191.65,191.64,147.0]
[1753096819321,0.78,191.65,191.64,183.84]
[1753096819645,5.93897222,191.65,191.64,183.84]
[1753096819847,6.65897222,191.65,191.64,183.84]
[1753096821836,0.78,191.65,191.64,183.84]
[1753096822039,6.65897222,191.65,191.64,183.84]
[1753096822416,0.06,191.65,191.64,183.84]
[1753096822622,6.65897222,191.65,191.64,183.84]
[1753096824933,13.43311725,191.65,191.61,147.0]
[1753096825246,0.72,191.64,191.62,36.84]
[1753096825427,0.72,191.63,191.62,36.84]
[1753096825739,7.55414503,191.65,191.62,36.84]
[1753096825930,5.9383827,191.64,191.62,36.84]
[1753096826132,5.2183827,191.64,191.62,36.84]
[1753096826446,5.87897222,191.63,191.62,36.84]
[1753096828430,0.72,191.63,191.62,183.84]
[1753096828634,6.59897222,191.63,191.62,183.84]
[1753096828837,6.59897222,191.63,191.58,148.2449809]
[1753096829148,6.59897222,191.63,191.58,1.2449809]
[1753096829149,11.09845131,191.59,191.58,1.2449809]
[1753096829345,11.81845131,191.59,191.58,1.2449809]
[1753096830248,6.59897222,191.59,191.58,1.2449809]
[1753096830751,5.21929177,191.6,191.58,1.2449809]
[1753096830752,5.87897222,191.6,191.58,1.2449809]
[1753096830932,5.87897222,191.6,191.59,36.82]
[1753096831552,5.87897222,191.6,191.59,36.84]
[1753096833139,6.55897222,191.6,191.59,36.84]
[1753096833534,11.77820909,191.6,191.58,38.0849809]
[1753096833740,6.55897222,191.59,191.58,38.0849809]
[1753096834455,26.0,191.61,191.58,38.0849809]
[1753096834655,5.87897222,191.59,191.58,38.0849809]
[1753096836447,27.632,191.63,191.58,38.7449809]
[1753096836768,5.87897222,191.62,191.58,190.99463039]
[1753096836972,5.87897222,191.61,191.58,190.33463039]
[1753096837170,5.87897222,191.61,191.59,0.66]
[1753096837341,5.87897222,191.61,191.6,36.84]
[1753096839741,5.87897222,191.61,191.6,37.5]
[1753096840373,0.06,191.63,191.6,184.5]
[1753096840667,5.87897222,191.61,191.6,184.5]
[1753096841471,0.06,191.63,191.6,184.5]
[1753096841647,5.87897222,191.61,191.6,184.5]
[1753096841839,5.87897222,191.61,191.6,147.0]
[1753096842043,43.65687873,191.61,191.58,1.2749809]
[1753096842344,5.87897222,191.59,191.58,1.2749809]
[1753096842975,6.55897222,191.59,191.58,1.2749809]
[1753096843352,0.68,191.59,191.58,1.2749809]
[1753096843675,6.55897222,191.59,191.58,1.2749809]
[1753096843862,37.77845131,191.59,191.58,1.2749809]
[1753096844458,26.0,191.57,191.56,0.03]
[1753096844670,31.87897222,191.57,191.56,0.03]
[1753096844844,32.55897222,191.57,191.56,0.03]
[1753096845959,37.77899623,191.57,191.56,0.03]
[1753096855551,31.87897222,191.57,191.56,0.03]
[1753096855968,37.09899623,191.57,191.56,0.03]
[1753096857779,37.77899623,191.57,191.56,0.03]
[1753096858274,37.09899623,191.57,191.56,0.03]
[1753096859174,37.77899623,191.57,191.56,0.03]
[1753096860481,37.09899623,191.57,191.56,0.03]
[1753096860778,31.87897222,191.57,191.56,0.03]
[1753096861453,5.87897222,191.57,191.56,0.03]
[1753096875174,5.87897222,191.57,191.55,0.19]
[1753096875493,5.87897222,191.56,191.55,0.19]
[1753096879881,5.87897222,191.56,191.54,0.03]
[1753096880082,5.87897222,191.55,191.54,0.69]
[1753096880597,5.87897222,191.55,191.54,0.19]
[1753096883509,5.87897222,191.55,191.54,5.41084159]
[1753096884280,5.87897222,191.55,191.53,147.0]
[1753096884483,26.0,191.53,191.52,0.03]
[1753096884687,31.87897222,191.53,191.52,0.03]
[1753096884889,32.56897222,191.53,191.52,0.03]
[1753096885288,35.68186202,191.53,191.52,0.03]
[1753096885893,35.68186202,191.53,191.47,37.05]
[1753096886089,3.77074784,191.48,191.47,37.05]
[1753096887193,5.8913895,191.48,191.47,36.39]
[1753096887982,6.5813895,191.48,191.47,36.39]
[1753096888382,5.8913895,191.48,191.47,36.39]
[1753096889314,5.8913895,191.48,191.46,149.6861454]
[1753096889315,6.5813895,191.48,191.46,147.03]
[1753096889486,6.5813895,191.47,191.46,0.03]
[1753096891783,0.69,191.49,191.46,0.03]
[1753096892110,5.8913895,191.47,191.46,0.69]
[1753096892278,5.8913895,191.47,191.46,0.19]
[1753096892701,5.8913895,191.47,191.45,36.8]
[1753096893604,26.0,191.5,191.45,183.8]
[1753096893791,5.8913895,191.47,191.45,189.0230762]
[1753096894280,5.8913895,191.47,191.45,189.7230762]
[1753096894477,5.8913895,191.47,191.45,189.0230762]
[1753096894697,5.8913895,191.46,191.45,205.80776017]
[1753096894901,6.5913895,191.46,191.43,0.03]
[1753096895097,5.8913895,191.44,191.43,0.03]
[1753096899108,6.5913895,191.44,191.43,0.03]
[1753096899504,5.92307134,191.46,191.43,0.03]
[1753096899712,5.8913895,191.44,191.43,0.03]
[1753096900508,5.22307134,191.46,191.43,0.03]
[1753096900816,5.8913895,191.44,191.43,0.03]
[1753096901914,6.5913895,191.44,191.43,0.03]
[1753096902301,5.8913895,191.44,191.43,0.03]
[1753096907614,5.22306219,191.46,191.43,0.03]
[1753096907808,5.8913895,191.44,191.43,0.03]
[1753096908824,6.5913895,191.44,191.43,0.03]
[1753096910102,11.81495824,191.44,191.43,0.03]
[1753096911719,11.81495824,191.44,191.4,1.2456562]
[1753096911720,26.0,191.41,191.4,1.2456562]
[1753096911917,38.482779,191.41,191.39,0.03]
[1753096912103,49.262779,191.4,191.39,0.03]
[1753096913114,49.262779,191.4,191.36,0.2]
[1753096913115,34.1882,191.37,191.36,0.2]
[1753096913428,40.0795895,191.37,191.35,0.03]
[1753096913610,47.897142,191.36,191.35,0.03]
[1753096913920,48.597142,191.36,191.35,0.03]
[1753096914095,11.117142,191.36,191.35,0.03]
[1753096914296,47.897142,191.36,191.35,0.03]
[1753096914605,26.0,191.34,191.31,0.03]
[1753096914919,68.6713895,191.34,191.31,0.03]
[1753096915503,73.89768823,191.34,191.31,0.03]
[1753096916028,68.6713895,191.34,191.31,0.03]
[1753096917311,8.0763,191.42,191.31,201.01607347]
[1753096917617,5.8913895,191.37,191.35,5.2260256]
[1753096918722,5.8913895,191.38,191.35,5.2260256]
[1753096918930,5.8913895,191.38,191.34,189.02622691]
[1753096919601,5.8913895,191.35,191.34,147.0]
[1753096920120,5.8913895,191.35,191.33,36.83]
[1753096920509,5.8913895,191.36,191.33,42.05646257]
[1753096920725,5.8913895,191.38,191.33,42.05646257]
[1753096920907,5.8913895,191.38,191.34,16.78468397]
[1753096921825,5.8913895,191.38,191.35,5.2260256]
[1753096922025,5.8913895,191.38,191.36,36.78]
[1753096923627,5.8913895,191.37,191.36,36.78]
[1753096924533,5.8913895,191.38,191.36,36.78]
[1753096926029,5.8913895,191.39,191.36,36.78]
[1753096927014,5.8913895,191.38,191.36,36.78]
[1753096929333,5.22445398,191.41,191.36,36.78]
[1753096929627,5.22445398,191.41,191.36,42.00572019]
[1753096929834,5.8913895,191.39,191.36,42.00572019]
[1753096930037,14.64935114,191.46,191.37,16.78468397]
[1753096930038,1.5912,191.46,191.37,16.78468397]
[1753096930336,1.5912,191.46,191.38,36.78]
[1753096930337,5.8913895,191.42,191.38,36.78]
[1753096930633,5.8913895,191.41,191.38,183.78]
[1753096931132,5.8913895,191.42,191.39,16.78468397]
[1753096931331,5.8913895,191.43,191.39,16.78468397]
[1753096931519,5.8913895,191.43,191.4,36.78]
[1753096932032,5.8913895,191.42,191.4,36.78]
[1753096932633,5.22364946,191.44,191.4,36.78]
[1753096932821,5.8913895,191.42,191.4,36.78]
[1753096934013,5.22329589,191.45,191.4,36.78]
[1753096934315,5.8913895,191.42,191.4,183.78]
[1753096934511,5.8913895,191.42,191.4,147.0]
[1753096934712,18.28153563,191.45,191.4,147.0]
[1753096934932,5.8913895,191.41,191.4,147.0]
[1753096935138,5.8913895,191.41,191.37,36.78]
[1753096935310,5.8913895,191.39,191.37,36.78]
[1753096936240,26.0,191.43,191.37,36.78]
[1753096936537,5.8913895,191.39,191.37,36.78]
[1753096936831,26.0,191.43,191.37,36.78]
[1753096937022,5.8913895,191.39,191.37,36.78]
[1753096938137,26.0,191.43,191.37,36.78]
[1753096938138,5.22411451,191.42,191.37,36.78]
[1753096938335,5.8913895,191.4,191.37,36.78]
[1753096938920,5.8913895,191.39,191.37,36.78]
[1753096939321,5.8913895,191.38,191.36,0.03]
[1753096939516,5.8913895,191.37,191.36,0.03]
[1753096940351,11.11686893,191.37,191.36,0.03]
[1753096942241,11.11768823,191.34,191.33,0.03]
[1753096942924,11.11768823,191.34,191.33,1e-08]
[1753096943242,37.11768823,191.34,191.33,1e-08]
[1753096946141,31.22629873,191.34,191.33,1e-08]
[1753096946347,37.11768823,191.34,191.33,1e-08]
[1753096952548,11.11768823,191.34,191.33,1e-08]
[1753096960751,11.8918895,191.4,191.33,1e-08]
[1753096960752,5.8913895,191.4,191.33,1e-08]
[1753096960949,5.8913895,191.36,191.33,1e-08]
[1753096963261,5.8913895,191.35,191.33,1e-08]
[1753096966769,5.9513895,191.36,191.33,1e-08]
[1753096967464,5.9513895,191.36,191.33,147.00000001]
[1753096967654,5.9513895,191.36,191.33,183.76000001]
[1753096968465,5.8913895,191.35,191.33,183.76000001]
[1753096969565,5.8913895,191.35,191.33,147.00000001]
[1753096970361,5.8913895,191.34,191.33,1e-08]
[1753096970874,6.5413895,191.34,191.33,1e-08]
[1753096971868,37.76768823,191.34,191.33,1e-08]
[1753096972058,11.76768823,191.34,191.33,1e-08]
[1753096977179,26.0,191.32,191.31,0.03]
[1753096977356,74.542779,191.32,191.31,0.03]
[1753096977559,75.192779,191.32,191.31,0.03]
[1753096978263,69.3013895,191.32,191.31,0.03]
[1753096979264,74.52823457,191.32,191.31,0.03]
[1753096981869,80.41962407,191.32,191.31,0.03]
[1753096982273,80.41962407,191.32,191.3,0.2]
[1753096982473,12.472779,191.31,191.3,0.2]
[1753096982650,37.782779,191.3,191.29,32.68960806]
[1753096982966,75.232779,191.3,191.29,32.68960806]
[1753096983368,62.76,191.3,191.29,32.68960806]
[1753096983572,5.8913895,191.3,191.29,33.38960806]
[1753096983748,62.76,191.31,191.29,33.38960806]
[1753096983948,5.22608417,191.35,191.29,38.61727045]
[1753096984151,5.8913895,191.32,191.3,0.7]
[1753096984353,5.8913895,191.33,191.3,0.7]
[1753096984565,5.8913895,191.34,191.3,0.7]
[1753096985162,0.06,191.36,191.3,6.5913895]
[1753096985468,5.9513895,191.36,191.31,0.7]
[1753096985872,5.9513895,191.36,191.31,42.70699375]
[1753096986174,5.9513895,191.36,191.32,0.7]
[1753096986553,0.06,191.36,191.33,16.78468397]
[1753096986874,0.06,191.36,191.34,0.7]
[1753096987263,0.06,191.47,191.37,6.0797]
[1753096987453,7.24123444,191.55,191.53,26.0]
[1753096987777,0.1,191.59,191.54,89.588001]
[1753096987973,0.1,191.59,191.57,74.11468397]
[1753096988149,0.1,191.59,191.57,117.18607347]
[1753096988351,0.06,191.62,191.61,26.0]
[1753096988656,0.06,191.66,191.64,74.11468397]
[1753096988871,0.06,191.66,191.64,97.75276577]
[1753096989175,0.06,191.66,191.64,98.54253586]
[1753096989371,0.06,191.66,191.64,114.60249392]
[1753096989755,0.06,191.66,191.64,151.78249392]
[1753096989954,0.06,191.66,191.64,157.00061122]
[1753096990169,0.06,191.66,191.64,125.67061122]
[1753096991060,0.06,191.66,191.65,16.78468397]
[1753096991264,9.39836284,191.77,191.69,16.78468397]
[1753096991500,9.39836284,191.77,191.71,9.39836284]
[1753096991970,14.61299509,191.77,191.71,9.39836284]
[1753096992270,14.61299509,191.77,191.7,37.16]
[1753096992271,9.39836284,191.75,191.7,9.39836284]
[1753096992474,10.08836284,191.74,191.69,46.55836284]
[1753096992853,0.69,191.74,191.69,46.55836284]
[1753096993272,0.69,191.74,191.7,9.39836284]
[1753096993877,9.39836284,191.75,191.7,9.39836284]
[1753096994177,0.69,191.74,191.7,9.39836284]
[1753096994375,0.69,191.73,191.69,37.16]
[1753096994568,10.08836284,191.72,191.67,37.14]
[1753096994772,10.08836284,191.72,191.67,46.53836284]
[1753096994967,9.39836284,191.7,191.67,37.14]
[1753096995376,9.39836284,191.69,191.67,37.14]
[1753096996084,9.39836284,191.68,191.67,37.14]
[1753096996386,9.39836284,191.69,191.67,37.14]
[1753096996769,9.39836284,191.69,191.66,1.06581071]
[1753096998994,14.61518064,191.69,191.66,1.06581071]
[1753096999481,9.39836284,191.68,191.66,1.06581071]
[1753097000064,9.39836284,191.67,191.66,1.06581071]
[1753097000464,14.6156634,191.67,191.66,1.06581071]
[1753097000664,15.3056634,191.67,191.66,1.06581071]
[1753097001378,26.06,191.73,191.66,1.06581071]
[1753097001583,9.39836284,191.68,191.66,1.06581071]
[1753097002762,14.61560715,191.68,191.66,1.06581071]
[1753097003970,9.39836284,191.67,191.66,1.06581071]
[1753097004175,15.30560715,191.68,191.66,1.06581071]
[1753097004470,13.03984978,191.72,191.66,1.06581071]
[1753097004471,5.21621198,191.71,191.66,1.06581071]
[1753097004774,5.21675622,191.69,191.66,1.06581071]
[1753097005794,9.39836284,191.69,191.66,1.06581071]
[1753097006882,14.61530966,191.69,191.66,1.06581071]
[1753097007671,14.61487253,191.7,191.66,148.06581071]
[1753097008785,0.06,191.73,191.67,63.18304681]
[1753097008986,0.06,191.73,191.69,16.78468397]
[1753097009195,0.06,191.73,191.7,37.0]
[1753097009382,0.06,191.73,191.7,46.39836284]
[1753097009886,0.06,191.73,191.71,1.06344712]
[1753097010499,0.06,191.73,191.71,10.46180996]
[1753097010995,0.06,191.73,191.72,1.06339165]
[1753097012178,0.06,191.73,191.72,17.84807562]
[1753097012391,0.06,191.73,191.72,27.24643846]
[1753097012787,0.06,191.73,191.72,206.57643846]
[1753097012999,23.15207419,191.82,191.76,16.78468397]
[1753097013307,23.15207419,191.82,191.77,36.96]
[1753097013522,0.1,191.93,191.82,31.33]
[1753097013794,0.1,191.93,191.92,9.39836284]
[1753097013979,0.1,191.93,191.92,46.85836284]
[1753097014177,0.1,191.93,191.92,63.64304681]
[1753097014379,0.1,191.93,191.92,27.1855618]
[1753097014578,0.1,191.93,191.92,95.9755618]
[1753097015098,0.1,191.93,191.92,64.6455618]
[1753097015878,0.1,191.93,191.92,1.00251499]
[1753097016183,0.1,191.93,191.92,10.40087783]
[1753097017003,0.1,191.93,191.92,36.78067469]
[1753097017202,60.0,191.96,191.93,16.78468397]
[1753097017401,23.21521984,191.96,191.95,57.51304681]
[1753097017603,27.17572654,192.0,191.99,74.11468397]
[1753097017780,55.501,192.16,192.03,26.0]
[1753097017982,18.21559787,192.15,192.06,9.39836284]
[1753097018180,9.39836284,192.12,192.06,54.96767895]
[1753097018376,55.73559787,192.15,192.07,0.90083658]
[1753097018682,9.39836284,192.11,192.07,0.90083658]
[1753097018881,55.73559787,192.15,192.07,0.90083658]
[1753097019903,0.72,192.14,192.07,0.90083658]
[1753097020096,9.39836284,192.1,192.07,0.90083658]
[1753097020297,18.21559787,192.15,192.08,26.67]
[1753097020298,5.20426749,192.15,192.08,26.67]
[1753097020499,5.92426749,192.15,192.08,64.15]
[1753097020701,5.92426749,192.15,192.08,63.48]
[1753097021005,9.39836284,192.09,192.07,0.90083658]
[1753097021204,55.79493623,192.15,192.07,0.90083658]
[1753097021407,0.72,192.12,192.07,0.90083658]
[1753097021589,55.79493623,192.15,192.07,0.90083658]
[1753097021908,18.93493623,192.15,192.07,10.29919942]
[1753097022205,55.501,192.16,192.12,9.39836284]
[1753097022403,55.501,192.16,192.13,26.67]
[1753097022608,9.39836284,192.15,192.14,0.67]
[1753097022791,60.70505428,192.16,192.13,1.25043095]
[1753097022792,55.501,192.16,192.13,1.25043095]
[1753097022989,55.501,192.16,192.14,1.25036587]
[1753097023196,60.70500021,192.16,192.14,1.25036587]
[1753097023392,9.39836284,192.15,192.14,1.25036587]
[1753097023590,0.72,192.15,192.14,1.25036587]
[1753097023791,10.11836284,192.15,192.14,1.25036587]
[1753097024209,0.72,192.15,192.14,1.25036587]
[1753097024388,10.11836284,192.15,192.14,1.25036587]
[1753097024903,5.92426749,192.15,192.14,1.25036587]
[1753097025208,5.20426749,192.15,192.14,1.25036587]
[1753097025409,15.32263033,192.15,192.14,1.25036587]
[1753097026901,15.32263033,192.15,192.06,16.78468397]
[1753097026902,28.33329907,192.15,192.06,16.78468397]
[1753097027099,9.39836284,192.07,192.01,9.39836284]
[1753097027402,9.39836284,192.06,192.01,16.78468397]
[1753097027610,9.39836284,192.04,191.98,16.78468397]
[1753097027913,9.39836284,192.01,191.98,16.78468397]
[1753097028117,63.62,192.1,191.93,15.609959]
[1753097028118,0.72,192.04,191.95,0.67]
[1753097028413,9.39836284,191.98,191.96,16.78468397]
[1753097028587,9.39836284,191.97,191.96,16.78468397]
[1753097028792,9.39836284,191.97,191.95,1.34435266]
[1753097028995,9.39836284,191.96,191.95,1.34435266]
[1753097029193,9.39836284,191.97,191.95,1.34435266]
[1753097029908,5.2090156,191.98,191.95,1.34435266]
[1753097030314,14.60737844,191.98,191.95,1.34435266]
[1753097030514,9.39836284,191.97,191.95,1.34435266]
[1753097030717,5.9290156,191.98,191.95,1.34435266]
[1753097030917,9.39836284,191.96,191.95,1.34435266]
[1753097031094,5.20941862,191.96,191.95,1.34435266]
[1753097031711,15.32778146,191.96,191.95,1.34435266]
[1753097032011,28.35132803,191.96,191.85,0.67]
[1753097032213,9.39836284,191.91,191.86,9.39836284]
[1753097032509,9.39836284,191.88,191.83,47.66836284]
[1753097033191,14.61009441,191.88,191.83,47.66836284]
[1753097033509,14.61009441,191.88,191.84,16.78468397]
[1753097034598,9.39836284,191.87,191.84,16.78468397]
[1753097034802,5.21104742,191.9,191.84,16.78468397]
[1753097035004,9.39836284,191.88,191.84,17.45468397]
[1753097035408,9.39836284,191.89,191.84,17.45468397]
[1753097035790,14.60941026,191.9,191.85,0.67]
[1753097036011,13.01816047,192.04,191.89,9.39836284]
[1753097036213,13.01816047,192.04,191.99,26.0]
[1753097036214,10.11836284,192.01,191.99,26.0]
[1753097036421,9.39836284,192.0,191.99,26.0]
[1753097036707,14.60669617,192.0,191.99,26.0]
[1753097036913,15.32669617,192.0,191.94,16.78468397]
[1753097037097,15.32669617,192.0,191.94,9.39836284]
[1753097037304,5.20833333,192.0,191.95,26.18304681]
[1753097037496,5.20833333,192.0,191.95,26.85304681]
[1753097037701,5.20833333,192.0,191.95,26.18304681]
[1753097037905,5.20833333,192.0,191.96,10.06836284]
[1753097039110,5.20779085,192.02,191.96,9.39836284]
[1753097039310,9.39836284,192.0,191.95,26.18304681]
[1753097039716,9.39836284,192.0,191.95,9.39836284]
[1753097040015,9.39836284,192.01,191.96,26.18304681]
[1753097040191,5.20779085,192.02,191.96,26.18304681]
[1753097040394,9.39836284,192.01,191.96,26.18304681]
[1753097040608,9.39836284,192.01,191.96,26.85304681]
[1753097040990,19.64595967,192.07,192.0,9.39836284]
[1753097041196,5.20670623,192.06,192.02,9.39836284]
[1753097041393,5.20670623,192.06,192.03,10.10836284]
[1753097041714,6.81160337,192.08,192.03,10.10836284]
[1753097041911,6.81160337,192.08,192.03,148.0]
[1753097042103,16.20996621,192.08,192.03,148.0]
[1753097042308,10.08836284,192.07,192.03,148.0]
[1753097042818,0.69,192.07,192.03,148.0]
[1753097043206,5.20670623,192.06,192.03,148.0]
[1753097043532,5.20643938,192.07,192.03,157.39836284]
[1753097043732,5.20643938,192.07,192.03,148.0]